[Event "*** SCC Grand Prix: Titled Tuesday Blitz"]
[Site "Chess.com"]
[Date "2020.08.11"]
[Round "7"]
[White "TudorAnton"]
[Black "AJSC02"]
[Result "0-1"]
[WhiteElo "2519"]
[BlackElo "2270"]
[TimeControl "180+1"]
[EndTime "11:12:52 PDT"]
[Termination "AJSC02 won by resignation"]

1. d4 {[%clk 0:03:00.9]} 1... Nf6 {[%clk 0:02:59.7]} 2. Nc3 {[%clk 0:02:56.7]}
2... d5 {[%clk 0:02:59.5]} 3. Bg5 {[%clk 0:02:55.7]} 3... Nbd7 {[%clk
0:02:57.6]} 4. Nf3 {[%clk 0:02:54.8]} 4... h6 {[%clk 0:02:55.2]} 5. Bh4 {[%clk
0:02:51.1]} 5... e6 {[%clk 0:02:54.5]} 6. e3 {[%clk 0:02:47.5]} 6... Be7 {[%clk
0:02:53.1]} 7. Be2 {[%clk 0:02:44.1]} 7... O-O {[%clk 0:02:52.8]} 8. O-O {[%clk
0:02:41]} 8... c5 {[%clk 0:02:52.1]} 9. dxc5 {[%clk 0:02:39.6]} 9... Nxc5 {[%clk
0:02:51.1]} 10. Re1 {[%clk 0:02:34.5]} 10... b6 {[%clk 0:02:44.1]} 11. Nd4
{[%clk 0:02:21.9]} 11... Bb7 {[%clk 0:02:41.3]} 12. Bf3 {[%clk 0:02:22.1]} 12...
Nfe4 {[%clk 0:02:33.8]} 13. Bxe7 {[%clk 0:02:19.7]} 13... Qxe7 {[%clk
0:02:34.5]} 14. Nxe4 {[%clk 0:02:19.1]} 14... dxe4 {[%clk 0:02:29.2]} 15. Be2
{[%clk 0:02:18.1]} 15... Rfd8 {[%clk 0:02:27.2]} 16. Qc1 {[%clk 0:02:17.6]}
16... Rac8 {[%clk 0:02:23.5]} 17. c3 {[%clk 0:02:16.5]} 17... Nd3 {[%clk
0:02:19.4]} 18. Bxd3 {[%clk 0:02:15.4]} 18... exd3 {[%clk 0:02:19.5]} 19. e4
{[%clk 0:02:15.3]} 19... Rxd4 {[%clk 0:02:13.2]} 0-1

[Event "*** SCC Grand Prix: Titled Tuesday Blitz"]
[Site "Chess.com"]
[Date "2020.08.11"]
[Round "7"]
[White "Roaccutane"]
[Black "chessfrendz"]
[Result "1-0"]
[WhiteElo "2566"]
[BlackElo "2261"]
[TimeControl "180+1"]
[EndTime "11:13:54 PDT"]
[Termination "Roaccutane won by resignation"]

1. d4 {[%clk 0:03:00.9]} 1... d6 {[%clk 0:02:59.7]} 2. Nc3 {[%clk 0:03:01]} 2...
Nf6 {[%clk 0:02:58.3]} 3. e4 {[%clk 0:03:01.6]} 3... g6 {[%clk 0:02:58.7]} 4.
Bg5 {[%clk 0:03:02.2]} 4... Bg7 {[%clk 0:02:58.4]} 5. e5 {[%clk 0:03:02.8]} 5...
dxe5 {[%clk 0:02:53.5]} 6. dxe5 {[%clk 0:03:03.7]} 6... Qxd1+ {[%clk 0:02:52.5]}
7. Rxd1 {[%clk 0:03:04.6]} 7... Ng4 {[%clk 0:02:51.2]} 8. Nd5 {[%clk 0:03:05.5]}
8... Bxe5 {[%clk 0:02:40.4]} 9. Nf3 {[%clk 0:03:05.6]} 9... Bd6 {[%clk
0:02:36.3]} 10. Bxe7 {[%clk 0:03:05.8]} 10... Bxe7 {[%clk 0:02:32.7]} 11. Nxc7+
{[%clk 0:03:05.8]} 11... Kf8 {[%clk 0:02:32.8]} 12. Nxa8 {[%clk 0:03:06.7]}
12... Be6 {[%clk 0:02:23.2]} 13. Nc7 {[%clk 0:02:49.5]} 13... Bxa2 {[%clk
0:02:19.4]} 14. h3 {[%clk 0:02:43.8]} 14... Nf6 {[%clk 0:02:12.7]} 15. Ra1
{[%clk 0:02:42.6]} 15... Be6 {[%clk 0:01:56.1]} 16. Nxe6+ {[%clk 0:02:41.5]}
16... fxe6 {[%clk 0:01:54.6]} 17. Rxa7 {[%clk 0:02:42.4]} 17... Nc6 {[%clk
0:01:52.4]} 18. Rxb7 {[%clk 0:02:41.3]} 18... Nd5 {[%clk 0:01:50.3]} 19. Bc4
{[%clk 0:02:37.7]} 19... Na5 {[%clk 0:01:43.4]} 20. Bxd5 {[%clk 0:02:36.4]}
20... Nxb7 {[%clk 0:01:42.4]} 21. Bxb7 {[%clk 0:02:36.1]} 21... Kg7 {[%clk
0:01:42.5]} 22. O-O {[%clk 0:02:35.5]} 22... Rb8 {[%clk 0:01:40.8]} 23. Be4
{[%clk 0:02:33.3]} 23... Rxb2 {[%clk 0:01:39.8]} 24. Rd1 {[%clk 0:02:33.6]}
24... Bc5 {[%clk 0:01:33.3]} 25. Rd7+ {[%clk 0:02:29.5]} 25... Kf6 {[%clk
0:01:32.5]} 26. Rxh7 {[%clk 0:02:29.1]} 26... Rb1+ {[%clk 0:01:31.6]} 27. Kh2
{[%clk 0:02:27]} 27... Be3 {[%clk 0:01:31.7]} 28. fxe3 {[%clk 0:02:25.4]} 1-0

[Event "*** SCC Grand Prix: Titled Tuesday Blitz"]
[Site "Chess.com"]
[Date "2020.08.11"]
[Round "7"]
[White "penguingm1"]
[Black "GM_Levan_Pantsulaia"]
[Result "1-0"]
[WhiteElo "3004"]
[BlackElo "2802"]
[TimeControl "180+1"]
[EndTime "11:14:24 PDT"]
[Termination "penguingm1 won on time"]

1. d4 {[%clk 0:03:00.9]} 1... Nf6 {[%clk 0:00:20.2]} 2. c4 {[%clk 0:02:57.5]}
2... c5 {[%clk 0:00:21.1]} 3. d5 {[%clk 0:02:57.8]} 3... e6 {[%clk 0:00:22]} 4.
Nc3 {[%clk 0:02:58.4]} 4... exd5 {[%clk 0:00:22.9]} 5. cxd5 {[%clk 0:02:59.3]}
5... d6 {[%clk 0:00:23.8]} 6. e4 {[%clk 0:03:00]} 6... g6 {[%clk 0:00:24.7]} 7.
Nge2 {[%clk 0:03:00.8]} 7... Bg7 {[%clk 0:00:25.4]} 8. Ng3 {[%clk 0:03:01.4]}
8... h5 {[%clk 0:00:24.8]} 9. Be2 {[%clk 0:02:59.6]} 9... h4 {[%clk 0:00:24.5]}
10. Nf1 {[%clk 0:02:59.9]} 10... Na6 {[%clk 0:00:24.9]} 11. Bg5 {[%clk
0:03:00.1]} 11... Qa5 {[%clk 0:00:21.8]} 12. Nd2 {[%clk 0:02:59.4]} 12... h3
{[%clk 0:00:20.9]} 13. g4 {[%clk 0:02:58.5]} 13... Bd7 {[%clk 0:00:15.7]} 14.
Nc4 {[%clk 0:02:57.1]} 14... Qc7 {[%clk 0:00:07.7]} 15. Bf4 {[%clk 0:02:57.5]}
15... Bf8 {[%clk 0:00:07.6]} 16. e5 {[%clk 0:02:56.5]} 16... dxe5 {[%clk
0:00:04.1]} 17. Bxe5 {[%clk 0:02:55.8]} 17... Qd8 {[%clk 0:00:04.6]} 18. g5
{[%clk 0:02:55.2]} 1-0

[Event "*** SCC Grand Prix: Titled Tuesday Blitz"]
[Site "Chess.com"]
[Date "2020.08.11"]
[Round "7"]
[White "Sanyura"]
[Black "Aygehovit1992"]
[Result "0-1"]
[WhiteElo "2404"]
[BlackElo "2625"]
[TimeControl "180+1"]
[EndTime "11:14:39 PDT"]
[Termination "Aygehovit1992 won by resignation"]

1. Nf3 {[%clk 0:03:00.9]} 1... Nf6 {[%clk 0:02:59.8]} 2. g3 {[%clk 0:03:01.2]}
2... g6 {[%clk 0:02:59.5]} 3. d3 {[%clk 0:03:02.1]} 3... Bg7 {[%clk 0:02:59.8]}
4. Nbd2 {[%clk 0:03:03]} 4... O-O {[%clk 0:03:00.2]} 5. Bg2 {[%clk 0:03:02.4]}
5... a5 {[%clk 0:03:01.1]} 6. O-O {[%clk 0:03:02.7]} 6... a4 {[%clk 0:03:01.7]}
7. e4 {[%clk 0:03:02.5]} 7... d6 {[%clk 0:03:01.7]} 8. c3 {[%clk 0:03:01]} 8...
e5 {[%clk 0:02:58.2]} 9. Ne1 {[%clk 0:02:59]} 9... Nc6 {[%clk 0:02:58]} 10. f4
{[%clk 0:02:58.2]} 10... exf4 {[%clk 0:02:56]} 11. gxf4 {[%clk 0:02:59.1]} 11...
d5 {[%clk 0:02:56.5]} 12. e5 {[%clk 0:02:57.9]} 12... Nh5 {[%clk 0:02:55.9]} 13.
d4 {[%clk 0:02:56.8]} 13... Bh6 {[%clk 0:02:31.1]} 14. f5 {[%clk 0:02:41.8]}
14... Be3+ {[%clk 0:02:30.5]} 15. Kh1 {[%clk 0:02:39.2]} 15... Qh4 {[%clk
0:02:30.4]} 16. Rf3 {[%clk 0:02:25.8]} 16... Bxd2 {[%clk 0:01:46.5]} 17. Bxd2
{[%clk 0:02:26.7]} 17... Bxf5 {[%clk 0:01:47.1]} 18. Bh6 {[%clk 0:01:52.1]}
18... Rfe8 {[%clk 0:01:45.6]} 19. Qd2 {[%clk 0:01:45.2]} 19... Be4 {[%clk
0:01:39.5]} 20. Rh3 {[%clk 0:01:14.5]} 20... Qxh3 {[%clk 0:01:38]} 0-1

[Event "*** SCC Grand Prix: Titled Tuesday Blitz"]
[Site "Chess.com"]
[Date "2020.08.11"]
[Round "7"]
[White "Yoshikrov"]
[Black "Evachess2006"]
[Result "1-0"]
[WhiteElo "2142"]
[BlackElo "1633"]
[TimeControl "180+1"]
[EndTime "11:14:41 PDT"]
[Termination "Yoshikrov won by resignation"]

1. e4 {[%clk 0:03:00.9]} 1... e5 {[%clk 0:02:50.4]} 2. Nf3 {[%clk 0:03:00.8]}
2... Nc6 {[%clk 0:02:51.3]} 3. d4 {[%clk 0:03:00.1]} 3... exd4 {[%clk 0:02:49]}
4. Nxd4 {[%clk 0:03:00.4]} 4... d6 {[%clk 0:02:49.9]} 5. Nc3 {[%clk 0:02:59.4]}
5... Nf6 {[%clk 0:02:43.7]} 6. f3 {[%clk 0:02:53.5]} 6... Be7 {[%clk 0:02:40.1]}
7. Be3 {[%clk 0:02:53.6]} 7... Bd7 {[%clk 0:02:38.6]} 8. Qd2 {[%clk 0:02:53.5]}
8... O-O {[%clk 0:02:37.8]} 9. O-O-O {[%clk 0:02:53.6]} 9... Re8 {[%clk
0:02:29.2]} 10. Kb1 {[%clk 0:02:53.8]} 10... Bf8 {[%clk 0:02:24.1]} 11. g4
{[%clk 0:02:53.5]} 11... Be6 {[%clk 0:02:13.8]} 12. h4 {[%clk 0:02:50.7]} 12...
Nd7 {[%clk 0:02:10.3]} 13. Nxe6 {[%clk 0:02:35]} 13... Rxe6 {[%clk 0:02:06.2]}
14. f4 {[%clk 0:02:34.8]} 14... Nf6 {[%clk 0:02:02.2]} 15. Qg2 {[%clk
0:02:14.7]} 15... a5 {[%clk 0:01:28.9]} 16. h5 {[%clk 0:02:13.4]} 16... b5
{[%clk 0:01:19.3]} 17. Bxb5 {[%clk 0:02:02.4]} 17... Qd7 {[%clk 0:01:04.2]} 18.
e5 {[%clk 0:01:52]} 18... Ne8 {[%clk 0:00:55.7]} 19. Bxc6 {[%clk 0:01:50.2]} 1-0

[Event "*** SCC Grand Prix: Titled Tuesday Blitz"]
[Site "Chess.com"]
[Date "2020.08.11"]
[Round "7"]
[White "Lupul_Cenusiu"]
[Black "140mariam"]
[Result "1-0"]
[WhiteElo "2498"]
[BlackElo "2346"]
[TimeControl "180+1"]
[EndTime "11:14:51 PDT"]
[Termination "Lupul_Cenusiu won by resignation"]

1. d4 {[%clk 0:03:00.9]} 1... e6 {[%clk 0:03:00.3]} 2. c4 {[%clk 0:02:59.9]}
2... d5 {[%clk 0:03:01.2]} 3. Nf3 {[%clk 0:02:59.2]} 3... Be7 {[%clk 0:03:01.2]}
4. Nc3 {[%clk 0:02:59]} 4... Nf6 {[%clk 0:03:01.9]} 5. cxd5 {[%clk 0:02:58]}
5... exd5 {[%clk 0:03:01.9]} 6. Bf4 {[%clk 0:02:58.5]} 6... c6 {[%clk
0:03:02.2]} 7. Qc2 {[%clk 0:02:57.1]} 7... Bg4 {[%clk 0:02:56.7]} 8. e3 {[%clk
0:02:54.9]} 8... Bxf3 {[%clk 0:02:53.8]} 9. gxf3 {[%clk 0:02:54.2]} 9... Qa5
{[%clk 0:02:53]} 10. Qb3 {[%clk 0:02:49.1]} 10... Nbd7 {[%clk 0:02:28.4]} 11.
Qxb7 {[%clk 0:02:46.5]} 11... O-O {[%clk 0:02:27.4]} 12. Qb3 {[%clk 0:02:44.4]}
12... c5 {[%clk 0:02:20.4]} 13. Bh3 {[%clk 0:02:39.9]} 13... cxd4 {[%clk
0:02:18.3]} 14. exd4 {[%clk 0:02:39.3]} 14... Nb6 {[%clk 0:02:09.6]} 15. O-O
{[%clk 0:02:38.3]} 15... Nc4 {[%clk 0:02:05.1]} 16. Rab1 {[%clk 0:02:24.1]}
16... Nh5 {[%clk 0:02:05]} 17. Be5 {[%clk 0:02:16.1]} 17... Nd2 {[%clk
0:02:04.1]} 18. Qxd5 {[%clk 0:02:14]} 18... Qxd5 {[%clk 0:01:57.3]} 19. Nxd5
{[%clk 0:02:12.7]} 19... Bh4 {[%clk 0:01:53]} 20. Rfd1 {[%clk 0:02:03.5]} 20...
Nxb1 {[%clk 0:01:52.8]} 21. Rxb1 {[%clk 0:02:03.3]} 21... Nf6 {[%clk 0:01:41.1]}
22. Ne7+ {[%clk 0:02:00.5]} 22... Kh8 {[%clk 0:01:41.3]} 23. Nf5 {[%clk
0:02:00.2]} 23... Bg5 {[%clk 0:01:40.4]} 24. f4 {[%clk 0:02:00]} 24... Bh6
{[%clk 0:01:36.7]} 25. Nxh6 {[%clk 0:01:59.3]} 25... gxh6 {[%clk 0:01:29.5]} 26.
Bxf6+ {[%clk 0:01:58.7]} 26... Kg8 {[%clk 0:01:30.4]} 27. d5 {[%clk 0:01:55.2]}
27... Rfb8 {[%clk 0:01:22.1]} 28. d6 {[%clk 0:01:50.5]} 28... Rb6 {[%clk
0:01:22.5]} 29. Rd1 {[%clk 0:01:47.8]} 1-0

[Event "*** SCC Grand Prix: Titled Tuesday Blitz"]
[Site "Chess.com"]
[Date "2020.08.11"]
[Round "7"]
[White "Jadeit90"]
[Black "redbaron8888"]
[Result "1-0"]
[WhiteElo "2268"]
[BlackElo "2400"]
[TimeControl "180+1"]
[EndTime "11:14:53 PDT"]
[Termination "Jadeit90 won by resignation"]

1. c4 {[%clk 0:03:00.9]} 1... e5 {[%clk 0:02:58.3]} 2. g3 {[%clk 0:03:01]} 2...
Nf6 {[%clk 0:02:57.4]} 3. Bg2 {[%clk 0:03:01.9]} 3... Bc5 {[%clk 0:02:56.7]} 4.
Nc3 {[%clk 0:03:02.1]} 4... a6 {[%clk 0:02:54.1]} 5. d3 {[%clk 0:03:01.7]} 5...
d6 {[%clk 0:02:53.9]} 6. Nf3 {[%clk 0:03:02.1]} 6... Nc6 {[%clk 0:02:53.4]} 7.
O-O {[%clk 0:03:02.4]} 7... h6 {[%clk 0:02:49.7]} 8. a3 {[%clk 0:03:01.3]} 8...
O-O {[%clk 0:02:49]} 9. b4 {[%clk 0:03:01.4]} 9... Bb6 {[%clk 0:02:46.6]} 10.
Nd5 {[%clk 0:03:00.8]} 10... Nxd5 {[%clk 0:02:19]} 11. cxd5 {[%clk 0:03:00.8]}
11... Ne7 {[%clk 0:02:19.1]} 12. Qb3 {[%clk 0:03:00.8]} 12... Qe8 {[%clk
0:02:06.8]} 13. Bb2 {[%clk 0:02:58.1]} 13... Bd7 {[%clk 0:02:04.2]} 14. Rac1
{[%clk 0:02:56.7]} 14... f5 {[%clk 0:02:02.2]} 15. Nd2 {[%clk 0:02:54.9]} 15...
Kh8 {[%clk 0:01:54.7]} 16. Nc4 {[%clk 0:02:54.8]} 16... Ba7 {[%clk 0:01:51]} 17.
Na5 {[%clk 0:02:54.6]} 17... Qc8 {[%clk 0:01:46.7]} 18. Rc2 {[%clk 0:02:52.4]}
18... Bb6 {[%clk 0:01:41]} 19. Rfc1 {[%clk 0:02:51.6]} 19... f4 {[%clk
0:01:37.6]} 20. Nc4 {[%clk 0:02:51.5]} 20... Ba7 {[%clk 0:01:33.6]} 21. Nxd6
{[%clk 0:02:47.4]} 21... cxd6 {[%clk 0:01:17.8]} 22. Rxc8 {[%clk 0:02:46.7]}
22... Raxc8 {[%clk 0:01:18.7]} 23. Rxc8 {[%clk 0:02:43.6]} 23... Bxc8 {[%clk
0:01:18.2]} 24. Bf3 {[%clk 0:02:39.6]} 24... fxg3 {[%clk 0:01:17.5]} 25. hxg3
{[%clk 0:02:38.6]} 25... Nf5 {[%clk 0:01:14.3]} 26. Kg2 {[%clk 0:02:37.1]} 26...
Bd7 {[%clk 0:01:10]} 27. a4 {[%clk 0:02:16.3]} 27... Ne7 {[%clk 0:00:55.1]} 28.
b5 {[%clk 0:02:14.7]} 28... axb5 {[%clk 0:00:54.2]} 29. axb5 {[%clk 0:02:14.9]}
29... Bc5 {[%clk 0:00:53.7]} 30. Ba3 {[%clk 0:02:14.3]} 30... b6 {[%clk
0:00:51.8]} 31. Bxc5 {[%clk 0:02:13.5]} 31... dxc5 {[%clk 0:00:52.7]} 32. d6
{[%clk 0:02:13]} 32... Nc8 {[%clk 0:00:52.2]} 33. Qd5 {[%clk 0:02:08.8]} 33...
Na7 {[%clk 0:00:51.2]} 34. Qb7 {[%clk 0:02:06.3]} 1-0

[Event "*** SCC Grand Prix: Titled Tuesday Blitz"]
[Site "Chess.com"]
[Date "2020.08.11"]
[Round "7"]
[White "serena-maria"]
[Black "canary2016"]
[Result "1-0"]
[WhiteElo "2278"]
[BlackElo "1877"]
[TimeControl "180+1"]
[EndTime "11:14:57 PDT"]
[Termination "serena-maria won by checkmate"]

1. Nf3 {[%clk 0:02:40.8]} 1... d5 {[%clk 0:02:58.5]} 2. g3 {[%clk 0:02:40.7]}
2... Nf6 {[%clk 0:02:57.2]} 3. Bg2 {[%clk 0:02:41.2]} 3... c6 {[%clk 0:02:56.9]}
4. O-O {[%clk 0:02:41.6]} 4... Bg4 {[%clk 0:02:56.4]} 5. h3 {[%clk 0:02:41]}
5... Bh5 {[%clk 0:02:55.9]} 6. d4 {[%clk 0:02:39.4]} 6... e6 {[%clk 0:02:52.5]}
7. c4 {[%clk 0:02:39.6]} 7... Bd6 {[%clk 0:02:51.7]} 8. Nc3 {[%clk 0:02:38.3]}
8... Nbd7 {[%clk 0:02:51.4]} 9. Qb3 {[%clk 0:02:37.4]} 9... Qc7 {[%clk
0:02:49.8]} 10. c5 {[%clk 0:02:32.6]} 10... Be7 {[%clk 0:02:48.6]} 11. Bf4
{[%clk 0:02:31.8]} 11... Qc8 {[%clk 0:02:47.2]} 12. g4 {[%clk 0:02:24.8]} 12...
Bg6 {[%clk 0:02:46.3]} 13. Bg3 {[%clk 0:02:20.3]} 13... O-O {[%clk 0:02:42.9]}
14. Qa3 {[%clk 0:02:08.9]} 14... b6 {[%clk 0:02:41.5]} 15. b4 {[%clk 0:02:08.1]}
15... a5 {[%clk 0:02:39.5]} 16. bxa5 {[%clk 0:01:56.4]} 16... bxc5 {[%clk
0:02:37.8]} 17. Rfc1 {[%clk 0:01:22.6]} 17... cxd4 {[%clk 0:02:33.7]} 18. Qxe7
{[%clk 0:01:20.8]} 18... dxc3 {[%clk 0:02:33.7]} 19. Rxc3 {[%clk 0:01:19.5]}
19... Rxa5 {[%clk 0:02:32.3]} 20. Rac1 {[%clk 0:01:17.9]} 20... Ra6 {[%clk
0:02:30]} 21. Nd4 {[%clk 0:01:11.6]} 21... Re8 {[%clk 0:02:27]} 22. Nxc6 {[%clk
0:01:02.3]} 22... Rxc6 {[%clk 0:02:21]} 23. Rxc6 {[%clk 0:01:00]} 23... Qxc6
{[%clk 0:02:20.5]} 24. Qxe8+ {[%clk 0:00:59.9]} 24... Nxe8 {[%clk 0:02:18.4]}
25. Rxc6 {[%clk 0:01:00.7]} 25... Nef6 {[%clk 0:02:12.9]} 26. Rc8+ {[%clk
0:00:59.1]} 26... Nf8 {[%clk 0:02:11.3]} 27. Bd6 {[%clk 0:00:58.1]} 27... Nd7
{[%clk 0:02:10.9]} 28. a4 {[%clk 0:00:54.5]} 28... Bb1 {[%clk 0:02:04.2]} 29. a5
{[%clk 0:00:53.5]} 29... Ba2 {[%clk 0:02:04.3]} 30. a6 {[%clk 0:00:53.5]} 30...
Bc4 {[%clk 0:02:04.2]} 31. a7 {[%clk 0:00:53.5]} 31... Bxe2 {[%clk 0:02:03.6]}
32. a8=Q {[%clk 0:00:52.9]} 32... Bc4 {[%clk 0:02:01.7]} 33. Rxf8+ {[%clk
0:00:52.2]} 33... Nxf8 {[%clk 0:02:01.5]} 34. Qxf8# {[%clk 0:00:53.1]} 1-0

[Event "*** SCC Grand Prix: Titled Tuesday Blitz"]
[Site "Chess.com"]
[Date "2020.08.11"]
[Round "7"]
[White "mfwagnerpeixoto"]
[Black "kakakz"]
[Result "1/2-1/2"]
[WhiteElo "2285"]
[BlackElo "2432"]
[TimeControl "180+1"]
[EndTime "11:14:59 PDT"]
[Termination "Game drawn by agreement"]

1. e4 {[%clk 0:03:00.9]} 1... e6 {[%clk 0:03:00.3]} 2. d4 {[%clk 0:02:59.9]}
2... d5 {[%clk 0:03:01.2]} 3. Nd2 {[%clk 0:02:59.9]} 3... c5 {[%clk 0:03:00.7]}
4. c3 {[%clk 0:02:57.8]} 4... Nf6 {[%clk 0:02:58.7]} 5. Bd3 {[%clk 0:02:55.5]}
5... cxd4 {[%clk 0:02:52.8]} 6. cxd4 {[%clk 0:02:54.5]} 6... dxe4 {[%clk
0:02:52.4]} 7. Nxe4 {[%clk 0:02:55.4]} 7... Nc6 {[%clk 0:02:51.1]} 8. Nf3 {[%clk
0:02:53.9]} 8... Be7 {[%clk 0:02:44.8]} 9. O-O {[%clk 0:02:49.2]} 9... O-O
{[%clk 0:02:43.6]} 10. Be3 {[%clk 0:02:44.9]} 10... b6 {[%clk 0:02:43.2]} 11.
Nxf6+ {[%clk 0:02:35.4]} 11... Bxf6 {[%clk 0:02:43]} 12. Bxh7+ {[%clk
0:02:35.1]} 12... Kxh7 {[%clk 0:02:39.9]} 13. Qc2+ {[%clk 0:02:35]} 13... Kg8
{[%clk 0:02:36.2]} 14. Qxc6 {[%clk 0:02:35.9]} 14... Ba6 {[%clk 0:02:35.4]} 15.
Rfc1 {[%clk 0:02:29]} 15... Qe7 {[%clk 0:01:59]} 16. Ne5 {[%clk 0:02:14.5]}
16... Bb7 {[%clk 0:01:46.1]} 17. Qc7 {[%clk 0:02:12.6]} 17... Rac8 {[%clk
0:01:36.8]} 18. Qxe7 {[%clk 0:02:05.6]} 18... Bxe7 {[%clk 0:01:35.9]} 19. Rxc8
{[%clk 0:01:48.4]} 19... Rxc8 {[%clk 0:01:35.5]} 20. Rc1 {[%clk 0:01:49.3]}
20... Rxc1+ {[%clk 0:01:35.2]} 21. Bxc1 {[%clk 0:01:50.2]} 21... Bd5 {[%clk
0:01:36.1]} 22. a3 {[%clk 0:01:47]} 22... f6 {[%clk 0:01:20.7]} 23. Nd3 {[%clk
0:01:45.9]} 23... Bc4 {[%clk 0:01:18.7]} 24. Ne1 {[%clk 0:01:40.7]} 24... a5
{[%clk 0:01:11]} 25. Bd2 {[%clk 0:01:38.9]} 25... Kf7 {[%clk 0:01:07.5]} 1/2-1/2

[Event "*** SCC Grand Prix: Titled Tuesday Blitz"]
[Site "Chess.com"]
[Date "2020.08.11"]
[Round "7"]
[White "wannabe2700"]
[Black "talman67"]
[Result "1-0"]
[WhiteElo "2672"]
[BlackElo "2496"]
[TimeControl "180+1"]
[EndTime "11:15:06 PDT"]
[Termination "wannabe2700 won by resignation"]

1. e4 {[%clk 0:03:00.9]} 1... e5 {[%clk 0:02:59.6]} 2. Nf3 {[%clk 0:03:00.8]}
2... Nc6 {[%clk 0:03:00.1]} 3. Bb5 {[%clk 0:03:01.3]} 3... a6 {[%clk 0:02:59.7]}
4. Ba4 {[%clk 0:03:01.7]} 4... Nf6 {[%clk 0:02:55.8]} 5. O-O {[%clk 0:03:02.2]}
5... Nxe4 {[%clk 0:02:56]} 6. d4 {[%clk 0:03:01.5]} 6... b5 {[%clk 0:02:56.5]}
7. Bb3 {[%clk 0:03:00.9]} 7... d5 {[%clk 0:02:57.1]} 8. dxe5 {[%clk 0:03:01.3]}
8... Be6 {[%clk 0:02:57.6]} 9. Be3 {[%clk 0:02:56.9]} 9... Be7 {[%clk
0:02:54.6]} 10. Nbd2 {[%clk 0:02:55.1]} 10... O-O {[%clk 0:02:54.8]} 11. Re1
{[%clk 0:02:34.6]} 11... Bg4 {[%clk 0:02:44.2]} 12. h3 {[%clk 0:01:47.6]} 12...
Bh5 {[%clk 0:02:43.2]} 13. Nxe4 {[%clk 0:01:26.5]} 13... dxe4 {[%clk 0:02:42]}
14. Qd5 {[%clk 0:01:27.1]} 14... exf3 {[%clk 0:02:26.8]} 15. Qxc6 {[%clk
0:01:24.5]} 15... fxg2 {[%clk 0:02:26.8]} 16. Qxg2 {[%clk 0:01:18.1]} 16... Qc8
{[%clk 0:02:23.4]} 17. Bd5 {[%clk 0:01:11.8]} 17... Rb8 {[%clk 0:02:19.2]} 18.
Ba7 {[%clk 0:01:10]} 18... Qf5 {[%clk 0:02:13.6]} 19. Bxb8 {[%clk 0:01:02.4]}
19... Rxb8 {[%clk 0:02:14.5]} 20. Be4 {[%clk 0:00:50.1]} 20... Qe6 {[%clk
0:02:06.6]} 21. a4 {[%clk 0:00:49.9]} 21... b4 {[%clk 0:02:05.4]} 22. f4 {[%clk
0:00:40.2]} 22... Bc5+ {[%clk 0:02:01]} 23. Kh1 {[%clk 0:00:39]} 23... f5 {[%clk
0:01:48.4]} 24. Bd5 {[%clk 0:00:38]} 1-0

[Event "*** SCC Grand Prix: Titled Tuesday Blitz"]
[Site "Chess.com"]
[Date "2020.08.11"]
[Round "7"]
[White "MuhittinBuker"]
[Black "alfiefischer77"]
[Result "1-0"]
[WhiteElo "2015"]
[BlackElo "2271"]
[TimeControl "180+1"]
[EndTime "11:15:13 PDT"]
[Termination "MuhittinBuker won by resignation"]

1. c4 {[%clk 0:03:00.9]} 1... Nf6 {[%clk 0:02:59.6]} 2. Nf3 {[%clk 0:03:01.4]}
2... e6 {[%clk 0:02:59.4]} 3. Nc3 {[%clk 0:03:01.8]} 3... Bb4 {[%clk 0:02:58.4]}
4. g3 {[%clk 0:03:00.7]} 4... c5 {[%clk 0:02:56.9]} 5. Bg2 {[%clk 0:03:00.9]}
5... O-O {[%clk 0:02:55.3]} 6. O-O {[%clk 0:03:01.3]} 6... Nc6 {[%clk
0:02:54.7]} 7. a3 {[%clk 0:03:01.1]} 7... Ba5 {[%clk 0:02:54.3]} 8. d3 {[%clk
0:02:52.8]} 8... d5 {[%clk 0:02:36.5]} 9. cxd5 {[%clk 0:02:42.5]} 9... Nxd5
{[%clk 0:02:32.1]} 10. Ne4 {[%clk 0:02:39.6]} 10... b6 {[%clk 0:02:17.1]} 11.
Qc2 {[%clk 0:02:29.1]} 11... Bb7 {[%clk 0:02:15.6]} 12. b3 {[%clk 0:02:23.9]}
12... Rc8 {[%clk 0:02:04.1]} 13. Bb2 {[%clk 0:02:22.9]} 13... Qe7 {[%clk
0:02:01.8]} 14. Rac1 {[%clk 0:02:21.7]} 14... Rfd8 {[%clk 0:01:59.1]} 15. Qb1
{[%clk 0:02:19.7]} 15... e5 {[%clk 0:01:36.7]} 16. Qa1 {[%clk 0:02:04]} 16... f6
{[%clk 0:01:34]} 17. Rfd1 {[%clk 0:01:58.3]} 17... h6 {[%clk 0:01:13.3]} 18. Qa2
{[%clk 0:01:57.2]} 18... Kh8 {[%clk 0:01:09.6]} 19. Nh4 {[%clk 0:01:53.7]} 19...
Qe8 {[%clk 0:01:01.5]} 20. Nf5 {[%clk 0:01:47.5]} 20... Nce7 {[%clk 0:00:58.6]}
21. Ned6 {[%clk 0:01:45.2]} 21... Qd7 {[%clk 0:00:47.2]} 22. Nf7+ {[%clk
0:01:43.4]} 22... Kg8 {[%clk 0:00:46.9]} 23. Nxd8 {[%clk 0:01:43.2]} 23... Rxd8
{[%clk 0:00:47.8]} 24. Nxe7+ {[%clk 0:01:40.1]} 24... Nxe7 {[%clk 0:00:41.9]}
25. b4+ {[%clk 0:01:39.5]} 1-0

[Event "*** SCC Grand Prix: Titled Tuesday Blitz"]
[Site "Chess.com"]
[Date "2020.08.11"]
[Round "7"]
[White "Anuar_Is"]
[Black "exoticprincess"]
[Result "1-0"]
[WhiteElo "2711"]
[BlackElo "2821"]
[TimeControl "180+1"]
[EndTime "11:15:15 PDT"]
[Termination "Anuar_Is won by resignation"]

1. e4 {[%clk 0:03:00.9]} 1... c6 {[%clk 0:03:00.3]} 2. d4 {[%clk 0:03:00.3]}
2... d5 {[%clk 0:03:01.2]} 3. e5 {[%clk 0:02:59.8]} 3... Bf5 {[%clk 0:03:01.4]}
4. Nf3 {[%clk 0:03:00.1]} 4... e6 {[%clk 0:03:01.9]} 5. Be2 {[%clk 0:03:00.2]}
5... Ne7 {[%clk 0:03:02.3]} 6. O-O {[%clk 0:02:58]} 6... h6 {[%clk 0:03:02.8]}
7. Nbd2 {[%clk 0:02:54.9]} 7... Bh7 {[%clk 0:03:02.9]} 8. Re1 {[%clk 0:02:54.9]}
8... Ng6 {[%clk 0:03:03.1]} 9. Nf1 {[%clk 0:02:54.7]} 9... c5 {[%clk 0:03:02.6]}
10. c4 {[%clk 0:02:51.3]} 10... Nc6 {[%clk 0:03:02.3]} 11. cxd5 {[%clk
0:02:50.8]} 11... exd5 {[%clk 0:03:02.9]} 12. Ng3 {[%clk 0:02:44.5]} 12... cxd4
{[%clk 0:03:00.1]} 13. Nxd4 {[%clk 0:02:44]} 13... Bc5 {[%clk 0:02:59.2]} 14.
Nxc6 {[%clk 0:02:20.9]} 14... bxc6 {[%clk 0:03:00.1]} 15. Bd3 {[%clk 0:02:15.2]}
15... O-O {[%clk 0:02:58.5]} 16. a3 {[%clk 0:02:15.1]} 16... Re8 {[%clk
0:02:55.6]} 17. b4 {[%clk 0:02:12]} 17... Bd4 {[%clk 0:02:51.2]} 18. Bxg6 {[%clk
0:02:10.6]} 18... Bxa1 {[%clk 0:02:51.2]} 19. Bxh7+ {[%clk 0:02:08.8]} 19...
Kxh7 {[%clk 0:02:52.1]} 20. Bf4 {[%clk 0:02:00.7]} 20... g5 {[%clk 0:02:49.8]}
21. Nh5 {[%clk 0:01:36.5]} 21... Re6 {[%clk 0:02:30.6]} 22. Bg3 {[%clk
0:01:30.9]} 22... Kg6 {[%clk 0:02:30.8]} 23. f4 {[%clk 0:01:24.4]} 23... f5
{[%clk 0:02:17]} 24. exf6 {[%clk 0:01:08]} 24... Rxe1+ {[%clk 0:02:12.4]} 25.
Bxe1 {[%clk 0:01:08.5]} 25... Bxf6 {[%clk 0:01:50]} 26. Qc2+ {[%clk 0:01:08.3]}
26... Kxh5 {[%clk 0:01:48.9]} 27. Qf5 {[%clk 0:01:07.9]} 1-0